fUSD/lending_fUSD_20240301
["ID","MTS","AMOUNT","RATE_DAILY","PERIOD"]
[316024540,1709327467837,-290.67047282,0.00022403,2]
[316024541,1709327467847,-406.0,0.00022413,2]
[316024542,1709327467857,-459.40538362,0.0002244,2]
[316024543,1709327467867,-290.67047282,0.00022441,2]
[316024544,1709327467877,-13372.24210026,0.00022449,3]
[316024545,1709327467886,-5923.69537599,0.00022449,3]
[316024546,1709327467896,-1000.0,0.00022449,3]
[316024547,1709327467906,-1000.0,0.00022449,3]
[316024548,1709327467916,-669.59067002,0.00022449,3]
[316024549,1709327467925,-162.02331206,0.00022449,3]
[316024550,1709327467934,-292.59174393,0.00022449,3]
[316024551,1709327467945,-486.96352713,0.00022449,3]
[316024552,1709327467955,-154.87466562,0.00022449,3]
[316024553,1709327467965,-303.13532667,0.00022449,3]
[316024554,1709327467976,-268.37164607,0.00022464,2]
[316024556,1709327467985,-150.0,0.00022464,2]
[316024557,1709327467994,-2239.12474543,0.00022465,3]
[316024558,1709327468004,-500.0,0.00022465,2]
[316024559,1709327468014,-500.0,0.00022465,2]
[316024560,1709327468024,-500.0,0.00022465,2]
[316024561,1709327468034,-500.0,0.00022465,2]
[316024562,1709327468044,-500.0,0.00022465,2]
[316024563,1709327468054,-500.0,0.00022465,2]
[316024564,1709327468063,-500.0,0.00022465,2]
[316024565,1709327468072,-500.0,0.00022465,2]
[316024566,1709327468084,-500.0,0.00022465,2]
[316024567,1709327468094,-572.56,0.00022465,2]
[316024568,1709327468105,-500.0,0.00022465,2]
[316024569,1709327468114,-500.0,0.00022465,2]
[316024570,1709327468123,-500.0,0.00022465,2]
[316024571,1709327468132,-516.31792027,0.00022465,2]
[316024572,1709327468142,-500.0,0.00022465,2]
[316024573,1709327468151,-501.63404862,0.00022465,2]
[316024574,1709327468161,-500.0,0.00022465,2]
[316024575,1709327468171,-500.0,0.00022465,2]
[316024576,1709327468180,-500.0,0.00022465,2]
[316024577,1709327468189,-500.0,0.00022465,2]
[316024578,1709327468199,-704.59,0.00022465,2]
[316024579,1709327468208,-500.0,0.00022465,2]
[316024580,1709327468218,-500.0,0.00022465,2]
[316024581,1709327468227,-500.0,0.00022465,2]
[316024582,1709327468237,-500.0,0.00022465,2]
[316024583,1709327468246,-500.0,0.00022465,2]
[316024584,1709327468256,-500.0,0.00022465,2]
[316024585,1709327468265,-597.89,0.00022465,2]
[316024586,1709327468275,-500.0,0.00022465,2]
[316024587,1709327468284,-500.0,0.00022465,2]
[316024588,1709327468294,-500.0,0.00022465,2]
[316024589,1709327468303,-500.0,0.00022465,2]
[316024590,1709327468312,-500.0,0.00022465,2]
[316024591,1709327468321,-500.0,0.00022465,2]
[316024592,1709327468334,-500.0,0.00022465,2]
[316024593,1709327468343,-500.0,0.00022465,2]
[316024594,1709327468353,-500.0,0.00022465,2]
[316024595,1709327468362,-500.0,0.00022465,2]
[316024596,1709327468372,-500.0,0.00022465,2]
[316024597,1709327468381,-500.0,0.00022465,2]
[316024598,1709327468390,-500.0,0.00022465,2]
[316024599,1709327468399,-537.44633209,0.00022465,2]
[316024600,1709327468409,-500.0,0.00022465,2]
[316024601,1709327468418,-563.82,0.00022465,2]
[316024602,1709327468427,-334.74316625,0.00022465,2]
[316024603,1709327468438,-373.46,0.00022465,2]
[316024604,1709327468448,-552.9,0.00022465,2]
[316024605,1709327468459,-500.0,0.00022465,2]
[316024606,1709327468470,-500.0,0.00022465,2]
[316024607,1709327468480,-500.0,0.00022465,2]
[316024608,1709327468490,-535.35914995,0.00022465,2]
[316024609,1709327468500,-500.0,0.00022465,2]
[316024610,1709327468510,-521.07,0.00022465,2]
[316024611,1709327468519,-500.0,0.00022465,2]
[316024612,1709327468529,-500.0,0.00022465,2]
[316024613,1709327468538,-283.33,0.00022465,2]
[316024614,1709327468548,-500.0,0.00022465,2]
[316024615,1709327468558,-790.06,0.00022465,2]
[316024616,1709327468567,-554.47,0.00022465,2]
[316024617,1709327468579,-500.0,0.00022465,2]
[316024618,1709327468588,-500.0,0.00022465,2]
[316024619,1709327468598,-500.0,0.00022465,2]
[316024620,1709327468608,-500.0,0.00022465,2]
[316024621,1709327468618,-500.0,0.00022465,2]
[316024622,1709327468627,-620.34,0.00022465,2]
[316024623,1709327468637,-399.76756078,0.00022465,2]
[316024624,1709327468648,-500.0,0.00022465,2]
[316024625,1709327468657,-945.1,0.00022465,2]
[316024626,1709327468667,-500.0,0.00022465,2]
[316024627,1709327468677,-500.0,0.00022465,2]
[316024628,1709327468687,-500.0,0.00022465,2]
[316024629,1709327468696,-500.0,0.00022465,2]
[316024630,1709327468708,-500.0,0.00022465,2]
[316024631,1709327468718,-507.13,0.00022465,2]
[316024632,1709327468728,-585.61,0.00022465,2]
[316024633,1709327468738,-500.0,0.00022465,2]
[316024634,1709327468749,-500.0,0.00022465,2]
[316024635,1709327468759,-500.0,0.00022465,2]
[316024636,1709327468768,-500.0,0.00022465,2]
[316024637,1709327468778,-500.0,0.00022465,2]
[316024638,1709327468788,-500.0,0.00022465,2]
[316024639,1709327468798,-655.68,0.00022465,2]
[316024640,1709327468808,-500.0,0.00022465,2]
[316024641,1709327468817,-500.0,0.00022465,2]
[316024642,1709327468829,-500.0,0.00022465,2]
[316024643,1709327468841,-500.0,0.00022465,2]
[316024644,1709327468850,-500.0,0.00022465,2]
[316024645,1709327468859,-928.54,0.00022465,2]
[316024646,1709327468869,-549.82,0.00022465,2]
[316024647,1709327468879,-500.0,0.00022465,2]
[316024648,1709327468888,-500.0,0.00022465,2]
[316024649,1709327468898,-500.0,0.00022465,2]
[316024650,1709327468909,-500.0,0.00022465,2]
[316024651,1709327468919,-500.0,0.00022465,2]
[316024652,1709327468929,-500.0,0.00022465,2]
[316024653,1709327468938,-500.0,0.00022465,2]
[316024654,1709327468948,-429.06124847,0.00022465,2]
[316024655,1709327468958,-537.75,0.00022465,2]
[316024656,1709327468968,-585.12,0.00022465,2]
[316024657,1709327468978,-740.69,0.00022465,2]
[316024658,1709327468987,-725.29,0.00022465,2]
[316024659,1709327468997,-500.0,0.00022465,2]
[316024660,1709327469006,-500.0,0.00022465,2]
[316024661,1709327469015,-500.0,0.00022465,2]
[316024662,1709327469024,-500.0,0.00022465,2]
[316024663,1709327469035,-500.0,0.00022465,2]
[316024664,1709327469045,-500.0,0.00022465,2]
[316024665,1709327469054,-636.90717643,0.00022465,2]
[316024666,1709327469064,-500.0,0.00022465,2]
[316024667,1709327469073,-567.26,0.00022465,2]
[316024668,1709327469083,-500.0,0.00022465,2]
[316024669,1709327469093,-1074.01,0.00022465,2]
[316024670,1709327469102,-724.85,0.00022465,2]
[316024671,1709327469110,-500.0,0.00022465,2]
[316024672,1709327469120,-406.45678898,0.00022465,2]
[316024673,1709327469130,-500.0,0.00022465,2]
[316024674,1709327469139,-500.0,0.00022465,2]
[316024675,1709327469148,-500.0,0.00022465,2]
[316024676,1709327469158,-500.0,0.00022465,2]
[316024677,1709327469168,-500.0,0.00022465,2]
[316024678,1709327469177,-500.0,0.00022465,2]
[316024679,1709327469186,-500.0,0.00022465,2]
[316024680,1709327469196,-500.0,0.00022465,2]
[316024681,1709327469206,-500.0,0.00022465,2]
[316024682,1709327469215,-564.75966675,0.00022465,2]
[316024683,1709327469224,-500.0,0.00022465,2]
[316024684,1709327469233,-500.0,0.00022465,2]
[316024685,1709327469244,-661.14,0.00022465,2]
[316024686,1709327469254,-500.0,0.00022465,2]
[316024687,1709327469263,-677.52,0.00022465,2]
[316024688,1709327469273,-500.0,0.00022465,2]
[316024689,1709327469284,-500.0,0.00022465,2]
[316024690,1709327469294,-500.0,0.00022465,2]
[316024691,1709327469303,-500.0,0.00022465,2]
[316024692,1709327469313,-556.71705797,0.00022465,2]
[316024693,1709327469323,-500.0,0.00022465,2]
[316024694,1709327469333,-500.0,0.00022465,2]
[316024695,1709327469343,-280.73,0.00022465,2]
[316024696,1709327469352,-500.0,0.00022465,2]
[316024697,1709327469362,-886.35,0.00022465,2]
[316024698,1709327469372,-500.0,0.00022465,2]
[316024699,1709327469382,-538.65043018,0.00022465,2]
[316024700,1709327469392,-621.47,0.00022465,2]
[316024701,1709327469402,-500.0,0.00022465,2]
[316024702,1709327469412,-500.0,0.00022465,2]
[316024703,1709327469422,-500.0,0.00022465,2]
[316024704,1709327469431,-500.0,0.00022465,2]
[316024705,1709327469441,-626.28,0.00022465,2]
[316024706,1709327469451,-500.0,0.00022465,2]
[316024707,1709327469461,-814.38,0.00022465,2]
[316024708,1709327469471,-500.0,0.00022465,2]
[316024709,1709327469481,-500.0,0.00022465,2]
[316024710,1709327469491,-500.0,0.00022465,2]
[316024711,1709327469502,-500.0,0.00022465,2]
[316024712,1709327469512,-500.0,0.00022465,2]
[316024713,1709327469522,-783.23,0.00022465,2]
[316024714,1709327469532,-500.0,0.00022465,2]
[316024715,1709327469542,-500.0,0.00022465,2]
[316024716,1709327469551,-500.0,0.00022465,2]
[316024717,1709327469561,-610.08,0.00022465,2]
[316024718,1709327469570,-500.0,0.00022465,2]
[316024719,1709327469582,-605.67744361,0.00022465,2]
[316024720,1709327469592,-500.0,0.00022465,2]
[316024721,1709327469602,-1032.68,0.00022465,2]
[316024722,1709327469611,-500.0,0.00022465,2]
[316024723,1709327469621,-500.0,0.00022465,2]
[316024724,1709327469630,-500.0,0.00022465,2]
[316024725,1709327469639,-553.93124418,0.00022465,2]
[316024726,1709327469650,-979.52,0.00022465,2]
[316024727,1709327469660,-500.0,0.00022465,2]
[316024728,1709327469669,-500.0,0.00022465,2]
[316024729,1709327469679,-500.0,0.00022465,2]
[316024730,1709327469688,-595.94,0.00022465,2]
[316024731,1709327469698,-500.0,0.00022465,2]
[316024732,1709327469707,-500.0,0.00022465,2]
[316024733,1709327469716,-500.0,0.00022465,2]
[316024734,1709327469728,-500.0,0.00022465,2]
[316024735,1709327469740,-500.0,0.00022465,2]
[316024736,1709327469749,-500.0,0.00022465,2]
[316024737,1709327469758,-500.0,0.00022465,2]
[316024738,1709327469767,-500.0,0.00022465,2]
[316024739,1709327469778,-500.0,0.00022465,2]
[316024740,1709327469787,-500.0,0.00022465,2]
[316024741,1709327469796,-694.02,0.00022465,2]
[316024742,1709327469805,-500.0,0.00022465,2]
[316024743,1709327469816,-730.54,0.00022465,2]
[316024744,1709327469827,-425.6,0.00022465,2]
[316024745,1709327469836,-500.0,0.00022465,2]
[316024746,1709327469846,-500.0,0.00022465,2]
[316024747,1709327469857,-500.0,0.00022465,2]
[316024748,1709327469866,-1631.05,0.00022465,2]
[316024749,1709327469876,-500.0,0.00022465,2]
[316024750,1709327469886,-500.0,0.00022465,2]
[316024751,1709327469895,-500.0,0.00022465,2]
[316024752,1709327469905,-579.96,0.00022465,2]
[316024753,1709327469915,-500.0,0.00022465,2]
[316024754,1709327469925,-623.07,0.00022465,2]
[316024755,1709327469934,-635.47,0.00022465,2]
[316024756,1709327469943,-500.0,0.00022465,2]
[316024757,1709327469952,-570.22,0.00022465,2]
[316024758,1709327469962,-1967.89,0.00022465,2]
[316024759,1709327469972,-790.48,0.00022465,2]
[316024760,1709327469982,-500.0,0.00022465,2]
[316024761,1709327469993,-500.0,0.00022465,2]
[316024762,1709327470003,-3840.77,0.00022465,2]
[316024763,1709327470013,-500.0,0.00022465,2]
[316024764,1709327470022,-447.90020269,0.00022465,2]
[316024765,1709327470030,-500.0,0.00022465,2]
[316024766,1709327470040,-1023.93,0.00022465,2]
[316024767,1709327470049,-709.22,0.00022465,2]
[316024768,1709327470059,-674.18,0.00022465,2]
[316024769,1709327470068,-802.02,0.00022465,2]
[316024770,1709327470078,-500.0,0.00022465,2]
[316024771,1709327470089,-758.5,0.00022465,2]
[316024772,1709327470098,-500.0,0.00022465,2]
[316024773,1709327470108,-2460.18,0.00022465,2]
[316024774,1709327470117,-500.0,0.00022465,2]
[316024775,1709327470127,-500.0,0.00022465,2]
[316024776,1709327470138,-500.0,0.00022465,2]
[316024777,1709327470223,-874.36,0.00022465,2]
[316024778,1709327470233,-5095.22,0.00022465,2]
[316024779,1709327470244,-619.7,0.00022465,2]
[316024780,1709327470254,-4543.29,0.00022465,2]
[316024781,1709327470263,-500.0,0.00022465,2]
[316024782,1709327470273,-576.90781723,0.00022465,2]
[316024783,1709327470282,-2791.17,0.00022465,2]
[316024784,1709327470291,-500.0,0.00022465,2]
[316024785,1709327470301,-500.0,0.00022465,2]
[316024786,1709327470311,-13075.41,0.00022465,2]
[316024787,1709327470321,-1086.33,0.00022465,2]
[316024788,1709327470333,-500.0,0.00022465,2]
[316024789,1709327470342,-697.61,0.00022465,2]
[316024790,1709327470352,-500.0,0.00022465,2]
[316024791,1709327470361,-2372.71,0.00022465,2]
[316024792,1709327470370,-531.57,0.00022465,2]
[316024793,1709327470380,-2238.29,0.00022465,2]
[316024794,1709327470389,-543.88496593,0.00022465,2]
[316024795,1709327470399,-3273.4,0.00022465,2]
[316024796,1709327470408,-500.0,0.00022465,2]
[316024797,1709327470417,-3863.53,0.00022465,2]
[316024798,1709327470426,-500.0,0.00022465,2]
[316024799,1709327470435,-13361.28,0.00022465,2]
[316024800,1709327470444,-1208.49,0.00022465,2]
[316024801,1709327470454,-500.0,0.00022465,2]
[316024802,1709327470463,-4739.16,0.00022465,2]
[316024803,1709327470472,-1157.09,0.00022465,2]
[316024804,1709327470482,-15192.43,0.00022465,2]
[316024805,1709327470491,-1083.08,0.00022465,2]
[316024806,1709327470501,-846.42,0.00022465,2]
[316024807,1709327470511,-500.0,0.00022465,2]
[316024808,1709327470520,-500.0,0.00022465,2]
[316024809,1709327470530,-500.0,0.00022465,2]
[316024810,1709327470540,-500.0,0.00022465,2]
[316024811,1709327470560,-836.05,0.00022465,2]
[316024812,1709327470569,-500.0,0.00022465,2]
[316024813,1709327470580,-500.0,0.00022465,2]
[316024814,1709327470589,-3538.29,0.00022465,2]
[316024815,1709327470599,-1380.52,0.00022465,2]
[316024816,1709327470609,-1788.19,0.00022465,2]
[316024817,1709327470618,-570.9,0.00022465,2]
[316024818,1709327470627,-3365.09,0.00022465,2]
[316024819,1709327470637,-1080.69,0.00022465,2]
[316024820,1709327470646,-1084.53,0.00022465,2]
[316024821,1709327470655,-902.73,0.00022465,2]
[316024822,1709327470664,-1536.91,0.00022465,2]
[316024823,1709327470673,-7184.22,0.00022465,2]
[316024824,1709327470683,-712.93,0.00022465,2]
[316024825,1709327470692,-500.0,0.00022465,2]
[316024826,1709327470701,-2694.61,0.00022465,2]
[316024827,1709327470711,-500.0,0.00022465,2]
[316024828,1709327470720,-500.0,0.00022465,2]
[316024829,1709327470730,-527.47,0.00022465,2]
[316024830,1709327470740,-3160.24,0.00022465,2]
[316024831,1709327470750,-500.0,0.00022465,2]
[316024832,1709327470759,-2910.19,0.00022465,2]
[316024833,1709327470768,-907.07,0.00022465,2]
[316024834,1709327470778,-1012.0,0.00022465,2]
[316024835,1709327470787,-1643.86,0.00022465,2]
[316024836,1709327470796,-500.0,0.00022465,2]
[316024837,1709327470805,-518.91,0.00022465,2]
[316024838,1709327470817,-2423.72,0.00022465,2]
[316024839,1709327470826,-729.11,0.00022465,2]
[316024840,1709327470836,-500.0,0.00022465,2]
[316024841,1709327470845,-883.75,0.00022465,2]
[316024842,1709327470854,-509.83,0.00022465,2]
[316024843,1709327470863,-1378.45,0.00022465,2]
[316024844,1709327470873,-589.53,0.00022465,2]
[316024845,1709327470883,-500.0,0.00022465,2]
[316024846,1709327470892,-500.0,0.00022465,2]
[316024847,1709327470902,-500.0,0.00022465,2]
[316024848,1709327470911,-553.48,0.00022465,2]
[316024849,1709327470921,-500.0,0.00022465,2]
[316024850,1709327470932,-500.0,0.00022465,2]
[316024851,1709327470942,-735.21,0.00022465,2]
[316024852,1709327470952,-711.66,0.00022465,2]
[316024853,1709327470967,-500.0,0.00022465,2]
[316024854,1709327470977,-697.75,0.00022465,2]
[316024855,1709327470986,-1628.97,0.00022465,2]
[316024856,1709327470998,-500.0,0.00022465,2]
[316024857,1709327471007,-500.0,0.00022465,2]
[316024858,1709327471017,-746.85,0.00022465,2]
[316024859,1709327471027,-500.0,0.00022465,2]
[316024860,1709327471037,-500.0,0.00022465,2]
[316024861,1709327471047,-703.92,0.00022465,2]
[316024862,1709327471057,-766.47,0.00022465,2]
[316024863,1709327471067,-583.31,0.00022465,2]
[316024864,1709327471077,-500.0,0.00022465,2]
[316024865,1709327471088,-540.53615792,0.00022465,2]
[316024866,1709327471098,-500.0,0.00022465,2]
[316024867,1709327471108,-932.22,0.00022465,2]
[316024868,1709327471118,-500.0,0.00022465,2]
[316024869,1709327471128,-894.62,0.00022465,2]
[316024870,1709327471137,-1880.26,0.00022465,2]
[316024871,1709327471147,-500.0,0.00022465,2]
[316024872,1709327471157,-1015.13,0.00022465,2]
[316024873,1709327471167,-729.79,0.00022465,2]
[316024874,1709327471176,-1414.53,0.00022465,2]
[316024875,1709327471187,-500.0,0.00022465,2]
[316024876,1709327471197,-914.2,0.00022465,2]
[316024877,1709327471207,-570.43,0.00022465,2]
[316024878,1709327471217,-629.7,0.00022465,2]
[316024879,1709327471227,-500.0,0.00022465,2]
[316024880,1709327471237,-2928.05,0.00022465,2]
[316024881,1709327471247,-582.48,0.00022465,2]
[316024882,1709327471257,-1028.0,0.00022465,2]
[316024883,1709327471267,-500.0,0.00022465,2]
[316024884,1709327471277,-626.77,0.00022465,2]
[316024885,1709327471288,-500.0,0.00022465,2]
[316024886,1709327471298,-552.37,0.00022465,2]
[316024887,1709327471307,-1008.5,0.00022465,2]
[316024888,1709327471317,-635.13,0.00022465,2]
[316024889,1709327471327,-1798.0,0.00022465,2]
[316024890,1709327471337,-3808.77,0.00022465,2]
[316024891,1709327471347,-500.0,0.00022465,2]
[316024892,1709327471358,-698.46,0.00022465,2]
[316024893,1709327471368,-399.7125846,0.00022465,2]
[316024894,1709327471378,-748.33,0.00022465,2]
[316024895,1709327471388,-2046.85,0.00022465,2]
[316024896,1709327471398,-365.36070376,0.00022465,2]
[316024897,1709327471409,-500.0,0.00022465,2]
[316024898,1709327471418,-817.49,0.00022465,2]
[316024899,1709327471429,-963.9,0.00022465,2]
[316024900,1709327471439,-1750.36,0.00022465,2]
[316024901,1709327471450,-500.0,0.00022465,2]
[316024902,1709327471461,-2795.7,0.00022465,2]
[316024903,1709327471473,-544.42,0.00022465,2]
[316024904,1709327471484,-500.0,0.00022465,2]
[316024905,1709327471496,-500.0,0.00022465,2]
[316024906,1709327471507,-1462.57,0.00022465,2]
[316024907,1709327471517,-500.0,0.00022465,2]
[316024908,1709327471528,-581.14,0.00022465,2]
[316024909,1709327471539,-570.14187964,0.00022465,2]
[316024910,1709327471550,-963.96,0.00022465,2]
[316024911,1709327471560,-2872.28,0.00022465,2]
[316024912,1709327471571,-1433.79,0.00022465,2]
[316024913,1709327471581,-548.65441137,0.00022465,2]
[316024914,1709327471592,-500.0,0.00022465,2]
[316024915,1709327471603,-564.73,0.00022465,2]
[316024916,1709327471613,-2954.46,0.00022465,2]
[316024917,1709327471623,-668.73,0.00022465,2]
[316024918,1709327471633,-500.0,0.00022465,2]
[316024919,1709327471642,-854.05,0.00022465,2]
[316024920,1709327471653,-500.0,0.00022465,2]
[316024921,1709327471663,-680.92,0.00022465,2]
[316024922,1709327471674,-500.0,0.00022465,2]
[316024923,1709327471684,-500.0,0.00022465,2]
[316024924,1709327471696,-587.0,0.00022465,2]
[316024925,1709327471706,-500.0,0.00022465,2]
[316024926,1709327471720,-500.0,0.00022465,2]
[316024927,1709327471731,-1483.22,0.00022465,2]
[316024928,1709327471741,-500.0,0.00022465,2]
[316024929,1709327471751,-1166.7,0.00022465,2]
[316024930,1709327471763,-3296.84,0.00022465,2]
[316024931,1709327471773,-992.09,0.00022465,2]
[316024932,1709327471783,-500.0,0.00022465,2]
[316024933,1709327471793,-500.0,0.00022465,2]
[316024934,1709327471804,-1520.97,0.00022465,2]
[316024935,1709327471815,-649.61,0.00022465,2]
[316024936,1709327471827,-1316.59,0.00022465,2]
[316024937,1709327471838,-718.57,0.00022465,2]
[316024938,1709327471849,-1959.03,0.00022465,2]
[316024939,1709327471860,-500.0,0.00022465,2]
[316024940,1709327471870,-10169.7,0.00022465,2]
[316024941,1709327471881,-2072.5,0.00022465,2]
[316024942,1709327471891,-500.0,0.00022465,2]
[316024943,1709327471902,-7070.22,0.00022465,2]
[316024944,1709327471913,-500.0,0.00022465,2]
[316024945,1709327471923,-529.11,0.00022465,2]
[316024946,1709327471933,-5861.18,0.00022465,2]
[316024947,1709327471944,-537.06,0.00022465,2]
[316024948,1709327471954,-33577.13,0.00022465,2]
[316024949,1709327471964,-891.32,0.00022465,2]
[316024950,1709327471976,-1668.82,0.00022465,2]
[316024951,1709327471987,-276.73,0.00022465,2]
[316024952,1709327471998,-8901.44,0.00022465,2]
[316024953,1709327472008,-2011.98,0.00022465,2]
[316024954,1709327472019,-3361.6,0.00022465,2]
[316024955,1709327472029,-500.0,0.00022465,2]
[316024956,1709327472040,-967.73,0.00022465,2]
[316024957,1709327472050,-1064.03,0.00022465,2]
[316024958,1709327472061,-500.0,0.00022465,2]
[316024959,1709327472072,-500.0,0.00022465,2]
[316024960,1709327472085,-638.84,0.00022465,2]
[316024961,1709327472096,-2149.2,0.00022465,2]
[316024962,1709327472115,-2108.84,0.00022465,2]
[316024963,1709327472133,-6084.97,0.00022465,2]
[316024964,1709327472145,-290.67047282,0.0002248,2]
[316024965,1709327472161,-208.0,0.0002249,2]
[316024966,1709327472178,-810.23299976,0.000225,2]
[316024967,1709327472195,-270.68,0.000225,2]
[316024968,1709327472208,-350.0,0.00022505,2]
[316024969,1709327472223,-174.81,0.00022511,2]
[316024970,1709327472237,-290.67047282,0.00022518,2]
[316024971,1709327472252,-1127.37844791,0.0002254,2]
[316024972,1709327472267,-1089.84440063,0.0002254,2]
[316024973,1709327472278,-1129.17719885,0.0002254,2]
[316024974,1709327472295,-290.67047282,0.00022556,2]
[316024975,1709327472310,-200.0,0.00022567,2]
[316024976,1709327472324,-624.73467929,0.00022575,2]
[316024977,1709327472340,-500.0,0.00022575,2]
[316024978,1709327472356,-500.0,0.00022575,2]
[316024979,1709327472372,-500.0,0.00022575,2]
[316024980,1709327472388,-500.0,0.00022575,2]
[316024981,1709327472399,-500.0,0.00022575,2]
[316024982,1709327472410,-500.0,0.00022575,2]
[316024983,1709327472424,-500.0,0.00022575,2]
[316024984,1709327472438,-572.56,0.00022575,2]
[316024985,1709327472452,-500.0,0.00022575,2]
[316024986,1709327472464,-500.0,0.00022575,2]
[316024987,1709327472477,-500.0,0.00022575,2]
[316024988,1709327472490,-500.0,0.00022575,2]
[316024989,1709327472505,-500.0,0.00022575,2]
[316024990,1709327472519,-500.0,0.00022575,2]
[316024991,1709327472531,-500.0,0.00022575,2]
[316024992,1709327472544,-500.0,0.00022575,2]
[316024993,1709327472558,-704.59,0.00022575,2]
[316024994,1709327472571,-500.0,0.00022575,2]
[316024995,1709327472589,-500.0,0.00022575,2]
[316024996,1709327472603,-500.0,0.00022575,2]
[316024997,1709327472616,-500.0,0.00022575,2]
[316024998,1709327472630,-500.0,0.00022575,2]
[316024999,1709327472644,-500.0,0.00022575,2]
[316025000,1709327472657,-597.89,0.00022575,2]
[316025001,1709327472671,-500.0,0.00022575,2]
[316025002,1709327472685,-500.0,0.00022575,2]
[316025003,1709327472698,-500.0,0.00022575,2]
[316025004,1709327472712,-500.0,0.00022575,2]
[316025005,1709327472726,-500.0,0.00022575,2]
[316025006,1709327472742,-500.0,0.00022575,2]
[316025007,1709327472761,-500.0,0.00022575,2]
[316025008,1709327472776,-500.0,0.00022575,2]
[316025009,1709327472790,-500.0,0.00022575,2]
[316025010,1709327472808,-500.0,0.00022575,2]
[316025011,1709327472822,-500.0,0.00022575,2]
[316025012,1709327472841,-500.0,0.00022575,2]
[316025013,1709327472855,-500.0,0.00022575,2]
[316025014,1709327472869,-500.0,0.00022575,2]
[316025015,1709327472883,-563.82,0.00022575,2]
[316025016,1709327472898,-552.9,0.00022575,2]
[316025017,1709327472912,-500.0,0.00022575,2]
[316025018,1709327472926,-500.0,0.00022575,2]
[316025019,1709327472940,-500.0,0.00022575,2]
[316025020,1709327472953,-178.53270218,0.00022575,2]
[316025021,1709327472966,-521.07,0.00022575,2]
[316025022,1709327472980,-500.0,0.00022575,2]
[316025023,1709327472993,-500.0,0.00022575,2]
[316025024,1709327473007,-500.0,0.00022575,2]
[316025025,1709327473019,-790.06,0.00022575,2]
[316025026,1709327473033,-554.47,0.00022575,2]
[316025027,1709327473048,-500.0,0.00022575,2]
[316025028,1709327473062,-500.0,0.00022575,2]
[316025029,1709327473074,-500.0,0.00022575,2]
[316025030,1709327473090,-500.0,0.00022575,2]
[316025031,1709327473102,-500.0,0.00022575,2]
[316025032,1709327473116,-620.34,0.00022575,2]
[316025033,1709327473130,-500.0,0.00022575,2]
[316025034,1709327473143,-945.1,0.00022575,2]
[316025035,1709327473156,-500.0,0.00022575,2]
[316025036,1709327473170,-500.0,0.00022575,2]
[316025037,1709327473184,-500.0,0.00022575,2]
[316025038,1709327473198,-500.0,0.00022575,2]
[316025039,1709327473212,-500.0,0.00022575,2]
[316025040,1709327473224,-507.13,0.00022575,2]